bitfinex-derivatives/quotes_ETHF0:USTF0_20241008
["timestamp","ask_amount","ask_price","bid_price","bid_amount"]
[1728376267906,0.41165,2429.8,2429.4,0.096]
[1728376267907,3.21,2429.8,2429.4,0.096]
[1728376268097,3.21,2429.6,2429.3,0.8085]
[1728376268301,0.82341,2429.5,2429.3,0.8085]
[1728376268603,1.24771,2429.5,2429.3,0.8085]
[1728376268910,0.836,2429.5,2429.3,1.22023]
[1728376269106,0.41166,2429.8,2429.4,0.41172]
[1728376269407,0.41166,2429.8,2429.5,3.2078]
[1728376269408,0.4243,2429.8,2429.5,3.2078]
[1728376269610,0.4243,2429.8,2429.6,0.41169]
[1728376270105,0.416,2429.9,2429.7,0.80067]
[1728376270306,0.82764,2429.9,2429.7,0.389]
[1728376271006,0.416,2429.9,2429.7,0.389]
[1728376271214,0.416,2429.9,2429.8,0.41165]
[1728376271527,0.416,2429.9,2429.7,0.80066]
[1728376271899,0.416,2429.9,2429.7,0.389]
[1728376272105,0.4243,2430.1,2429.8,4.52685]
[1728376272308,0.4243,2430.1,2429.9,0.41163]
[1728376272611,0.41163,2430.0,2429.8,3.9988]
[1728376273407,0.41163,2430.0,2429.8,4.41045]
[1728376274116,0.41163,2430.0,2429.8,3.9988]
[1728376274309,0.4243,2430.1,2429.8,3.9988]
[1728376274310,0.41164,2429.9,2429.8,3.9988]
[1728376274713,0.41164,2429.9,2429.8,8.114]
[1728376275213,0.83591,2430.1,2429.8,8.52564]
[1728376275423,0.83591,2430.1,2429.8,4.41044]
[1728376275722,0.83591,2430.1,2429.9,0.41163]
[1728376276011,0.41161,2430.1,2429.9,0.41163]
[1728376276412,0.3867,2430.2,2429.9,0.41163]
[1728376276413,0.79829,2430.2,2429.9,0.41163]
[1728376277011,0.41161,2430.1,2429.9,0.41163]
[1728376277312,0.3867,2430.2,2429.8,3.9988]
[1728376277517,0.7983,2430.2,2429.9,0.41164]
[1728376278715,0.41162,2430.1,2429.8,4.41045]
[1728376278919,0.3867,2430.2,2429.9,0.41163]
[1728376279310,0.3867,2430.2,2429.8,3.9988]
[1728376279516,3.306,2430.8,2430.4,0.41154]
[1728376279823,0.804,2430.7,2430.4,3.2078]
[1728376280012,0.3849,2430.7,2430.5,1.64013]
[1728376280323,0.7964,2430.7,2430.5,1.2286]
[1728376280515,0.3849,2430.7,2430.5,1.64014]
[1728376280719,0.4191,2430.9,2430.6,0.41152]
[1728376281025,0.83057,2430.9,2430.6,0.41152]
[1728376281619,0.4191,2430.9,2430.6,0.41152]
[1728376281820,0.83057,2430.9,2430.6,0.41151]
[1728376284121,0.4191,2430.9,2430.7,3.2078]
[1728376284314,0.41149,2430.8,2430.7,3.2078]
[1728376285421,0.4202,2431.0,2430.9,0.41147]
[1728376285622,0.4202,2431.0,2430.7,3.2078]
[1728376285818,0.41147,2430.9,2430.7,3.6193]
[1728376286129,0.41147,2430.9,2430.7,1.00472972]
[1728376286320,4.04166,2431.0,2430.7,1.41622972]
[1728376286527,0.4202,2431.0,2430.8,0.41148]
[1728376286728,0.4164,2431.2,2430.7,1.00472972]
[1728376287019,0.41143,2431.2,2430.9,0.41146]
[1728376287222,4.53834483,2431.3,2431.0,0.8452]
[1728376287426,4.53834483,2431.3,2431.1,0.3896]
[1728376287427,0.41142,2431.2,2431.1,0.3896]
[1728376287628,0.7947,2431.3,2431.1,0.3896]
[1728376287821,0.41142,2431.2,2431.1,0.3896]
[1728376289020,0.41143,2431.1,2431.0,0.8452]
[1728376289226,0.41143,2431.1,2431.0,0.4222]
[1728376289721,3.21,2431.2,2431.0,0.4222]
[1728376289722,3.62143,2431.2,2431.0,0.4222]
[1728376291532,0.41143,2431.1,2431.0,0.4222]
[1728376292032,3.62143,2431.2,2431.0,0.4222]
[1728376292325,3.21,2431.2,2431.0,0.4222]
[1728376292531,3.21,2431.2,2431.1,0.41143]
[1728376292829,3.21,2431.2,2431.0,0.83364]
[1728376293129,3.62142,2431.2,2431.0,0.83364]
[1728376293426,0.7947,2431.3,2431.0,0.4222]
[1728376293727,0.7947,2431.3,2431.2,0.41142]
[1728376293927,0.4049,2431.3,2431.0,3.63]
[1728376294124,0.41146,2431.0,2430.8,0.80108]
[1728376294430,0.82417,2430.9,2430.8,0.3896]
[1728376294633,0.8022,2430.9,2430.8,0.80109]
[1728376294850,0.8022,2430.9,2430.8,4.91469]
[1728376295030,0.8022,2430.9,2430.8,0.80109]
[1728376296128,1.21367,2430.9,2430.8,0.3896]
[1728376296441,0.8022,2430.9,2430.8,0.80109]
[1728376296826,1.21367,2430.9,2430.8,0.3896]
[1728376297028,0.8022,2430.9,2430.3,3.3188]
[1728376297230,0.4115,2430.8,2430.6,0.41152]
[1728376297431,4.01,2430.9,2430.4,0.4119]
[1728376297630,0.41151,2430.7,2430.5,0.41153]
[1728376298268,0.41151,2430.7,2430.4,0.4119]
[1728376298269,0.4247,2430.8,2430.4,0.4119]
[1728376298534,44.81,2430.9,2430.4,0.4119]
[1728376298535,1.21367,2430.9,2430.7,0.4115]
[1728376299232,0.41149,2430.8,2430.6,0.41151]
[1728376299628,1.21367,2430.9,2430.7,0.4115]
[1728376300236,0.8022,2430.9,2430.4,0.4119]
[1728376300533,0.41149,2430.8,2430.6,0.41151]
[1728376302228,0.8022,2430.9,2430.4,0.4119]
[1728376302431,1.21367,2430.9,2430.7,0.41149]
[1728376302737,0.8022,2430.9,2430.8,0.41149]
[1728376302938,4.0122,2430.9,2430.4,0.4119]
[1728376303431,0.41153,2430.6,2430.4,0.82345]
[1728376303634,0.8138,2430.5,2430.4,0.82345]
[1728376303824,1.22534,2430.5,2430.3,1.20636]
[1728376304023,0.8138,2430.5,2430.4,0.41155]
[1728376305042,0.4067,2430.7,2430.6,0.41152]
[1728376305829,0.8182,2430.7,2430.5,0.81742]
[1728376306030,0.4067,2430.7,2430.6,0.41152]
[1728376306434,0.4067,2430.7,2430.3,4.0026]
[1728376306734,0.4177,2430.6,2430.5,0.41154]
[1728376308439,0.41148,2430.9,2430.7,0.41149]
[1728376308755,0.41148,2430.9,2430.3,4.0026]
[1728376308756,0.7932,2431.0,2430.6,0.4066]
[1728376308934,0.41148,2430.9,2430.7,0.4115]
[1728376309640,0.41149,2430.8,2430.7,0.4115]
[1728376310139,0.41148,2430.9,2430.7,0.41149]
[1728376311130,0.7932,2431.0,2430.6,0.4066]
[1728376311335,0.7932,2431.0,2430.7,0.41149]
[1728376311642,0.41148,2430.9,2430.7,0.41149]
[1728376312037,0.41149,2430.8,2430.6,0.81811]
[1728376312433,0.41147,2430.9,2430.7,0.41149]
[1728376313843,0.7932,2431.0,2430.8,0.41149]
[1728376313844,1.20466,2431.0,2430.8,0.41149]
[1728376314047,0.41147,2430.9,2430.7,0.41149]
[1728376314238,0.7932,2431.0,2430.7,0.41149]
[1728376314544,0.41147,2430.9,2430.7,0.41149]
[1728376314751,0.7932,2431.0,2430.6,0.4066]
[1728376314982,0.7932,2431.0,2430.7,0.4096]
[1728376315251,0.7932,2431.0,2430.9,0.41147]
[1728376316036,0.41148,2430.9,2430.6,0.81811]
[1728376316237,0.4079,2430.8,2430.7,0.4115]
[1728376316433,1.20466,2431.0,2430.7,0.4115]
[1728376316641,1.63096,2431.0,2430.6,0.4066]
[1728376316839,1.63096,2431.0,2430.8,0.41148]
[1728376317544,0.7932,2431.0,2430.6,0.4066]
[1728376317744,0.7932,2431.0,2430.9,0.41147]
[1728376318144,3.45587773,2431.2,2431.1,0.41143]
[1728376318342,3.2078,2431.2,2431.1,0.41143]
[1728376318943,0.8398,2431.4,2431.0,0.3852]
[1728376319145,0.8398,2431.4,2431.2,0.41141]
[1728376319448,1.25119,2431.4,2431.2,0.41141]
[1728376319645,0.8398,2431.4,2431.2,0.41141]
[1728376320844,3.21,2431.3,2430.8,0.4238]
[1728376321040,0.41146,2431.0,2430.5,3.2078]
[1728376321248,1.2037,2430.9,2430.7,0.41149]
[1728376321640,0.41149,2430.8,2430.5,4.0248]
[1728376321864,4.4137,2430.9,2430.5,3.61932]
[1728376322044,0.41151,2430.7,2430.5,3.61932]
[1728376322646,0.41151,2430.7,2430.5,3.2078]
[1728376322853,3.21,2430.7,2430.2,0.4189]
[1728376323045,0.41153,2430.6,2430.3,0.41157]
[1728376323239,0.4077,2430.5,2430.3,0.41157]
[1728376323444,0.8077,2430.5,2430.3,0.41157]
[1728376323649,1.21924,2430.5,2430.3,0.41157]
[1728376324152,0.8077,2430.5,2430.2,0.4189]
[1728376324353,0.8077,2430.5,2430.3,0.41156]
[1728376324651,1.21924,2430.5,2430.3,0.41156]
[1728376324851,1.21924,2430.5,2430.2,0.4189]
[1728376325052,0.41156,2430.4,2430.1,0.41159]
[1728376325250,1.21924,2430.5,2430.0,0.3977]
[1728376325549,0.8077,2430.5,2430.2,0.41158]
[1728376325747,0.41155,2430.4,2430.2,0.41158]
[1728376326750,3.21,2430.3,2429.8,3.6352]
[1728376326945,3.21,2430.3,2429.8,0.41164]
[1728376326946,0.41162,2430.0,2429.8,0.41164]
[1728376327151,0.8161,2429.9,2429.8,0.41164]
[1728376327650,0.8161,2429.9,2429.7,0.41166]
[1728376327651,1.22774,2429.9,2429.7,0.41166]
[1728376327846,0.8161,2429.9,2429.7,0.41166]
[1728376328047,0.8161,2429.9,2429.8,0.41165]
[1728376328552,0.8161,2429.9,2429.7,0.41166]
[1728376329146,0.8161,2429.9,2429.8,0.41165]
[1728376329950,0.41159,2430.2,2429.6,0.3956]
[1728376330149,0.06406296,2430.1,2429.9,0.41163]
[1728376330344,0.47566296,2430.1,2429.9,0.41163]
[1728376330658,0.41162,2430.0,2429.7,0.41167]
[1728376330842,3.62161,2430.1,2429.8,0.41165]
[1728376331047,0.41163,2430.0,2429.7,0.41166]
[1728376331550,3.21,2430.1,2429.6,0.3956]
[1728376331754,0.41166,2429.8,2429.5,3.5941]
[1728376331974,0.8313,2429.7,2429.6,0.41169]
[1728376332649,0.8313,2429.7,2429.5,4.00579]
[1728376332848,1.24298,2429.7,2429.5,3.2078]
[1728376333052,1.24298,2429.7,2429.5,3.6195]
[1728376333751,0.8313,2429.7,2429.5,3.6195]
[1728376334657,0.8313,2429.7,2429.5,0.4117]
[1728376336350,0.41172,2429.4,2429.3,3.2078]
[1728376336555,3.21,2429.5,2429.0,0.41178]
[1728376336742,0.83365,2429.3,2429.0,0.41178]
[1728376337145,0.3861,2429.2,2429.0,0.41178]
[1728376337749,0.79786,2429.2,2429.0,0.41178]
[1728376338149,0.79786,2429.2,2428.9,1.2608]
[1728376338555,0.79786,2429.2,2429.0,0.41179]
[1728376343056,0.3861,2429.2,2429.1,0.41177]
[1728376343461,0.4219,2429.3,2429.2,0.41176]
[1728376343851,0.398,2429.4,2429.3,0.41174]
[1728376346353,0.80972,2429.4,2429.2,0.41175]
[1728376346553,0.398,2429.4,2429.2,0.41175]
[1728376347363,0.80973,2429.4,2429.2,0.41175]
[1728376349060,0.80973,2429.4,2429.0,3.2078]
[1728376349061,0.8127,2429.6,2429.0,6.4178]
[1728376349264,0.8127,2429.6,2429.0,3.2078]
[1728376349265,0.4257,2429.6,2429.0,3.2078]
[1728376349466,0.3973,2429.5,2429.2,0.41174]
[1728376349765,0.3973,2429.5,2429.0,3.2078]
[1728376350255,0.3973,2429.5,2429.3,0.41173]
[1728376350256,0.80901,2429.5,2429.3,0.41173]
[1728376351067,0.4257,2429.6,2429.0,3.2078]
[1728376351267,0.4257,2429.6,2429.5,0.41171]
[1728376351463,0.8374,2429.6,2429.3,0.41172]
[1728376351664,0.8374,2429.6,2429.4,0.79982]
[1728376351665,0.4257,2429.6,2429.4,0.79982]
[1728376351869,0.41171,2429.5,2429.4,0.79982]
[1728376352369,0.4257,2429.6,2429.4,0.79982]
[1728376352568,0.8374,2429.6,2429.4,0.79982]
[1728376352867,0.4257,2429.6,2429.4,0.3881]
[1728376353059,0.4257,2429.6,2429.5,0.41171]
[1728376353264,0.4257,2429.6,2429.5,0.81461]
[1728376355262,0.4257,2429.6,2429.5,0.4029]
[1728376355868,0.8374,2429.6,2429.4,0.3881]
[1728376356063,0.8374,2429.6,2429.3,0.41173]
[1728376356572,0.8374,2429.6,2429.1,0.8132]
[1728376356871,0.8374,2429.6,2429.4,0.41172]
[1728376358874,1.67,2429.9,2429.7,0.41166]
[1728376358875,0.41164,2429.9,2429.7,0.41166]
[1728376359174,1.22404,2429.9,2429.7,0.41166]
[1728376359776,0.8124,2429.9,2429.3,3.2078]
[1728376359993,0.41166,2429.8,2429.6,0.41168]
[1728376360280,0.8124,2429.9,2429.3,3.2078]
[1728376360578,1.22405,2429.9,2429.7,0.41166]
[1728376362472,0.8124,2429.9,2429.8,0.41165]
[1728376362675,3.2078,2430.0,2429.4,1.02931]
[1728376362970,3.2078,2430.0,2429.9,0.41164]
[1728376363177,0.3972,2430.2,2430.1,0.4116]
[1728376364173,0.3972,2430.2,2430.0,0.41161]
[1728376364174,0.80879,2430.2,2430.0,0.41161]
[1728376364375,0.3972,2430.2,2430.1,0.4116]
[1728376364578,1.20659,2430.2,2430.0,0.41161]
[1728376365379,0.795,2430.2,2430.1,0.4116]
[1728376365977,1.20659,2430.2,2430.0,0.41161]
[1728376367881,1.20659,2430.2,2429.6,3.6192]
[1728376368083,1.20659,2430.2,2430.1,0.4116]
[1728376370677,0.795,2430.2,2430.1,0.4116]
[1728376376388,1.20659,2430.2,2430.0,0.41161]
[1728376376583,0.795,2430.2,2429.9,0.8055]
[1728376376884,0.795,2430.2,2430.1,0.4116]
[1728376377492,0.41156,2430.4,2430.2,0.41158]
[1728376377688,0.4002,2430.3,2430.2,0.41158]
[1728376378592,0.4002,2430.3,2430.0,0.3972]
[1728376378893,0.41159,2430.2,2430.0,0.80881]
[1728376379083,0.41159,2430.2,2430.0,0.41161]
[1728376379386,0.79829,2430.2,2430.0,0.41161]
[1728376380282,0.3867,2430.2,2430.1,0.4116]
[1728376380889,4.02177,2430.3,2430.1,0.4116]
[1728376381094,0.41159,2430.2,2430.1,0.4116]
[1728376381684,4.02178,2430.3,2430.1,0.4116]
[1728376381884,3.6102,2430.3,2430.2,0.41159]
[1728376382081,3.2078,2430.8,2430.1,3.21]
[1728376382283,0.8271,2430.8,2430.7,0.4115]
[1728376382691,3.62145,2431.1,2430.5,0.7895]
[1728376382895,3.62145,2431.1,2430.9,0.41147]
[1728376383199,3.62145,2431.1,2430.6,0.3971]
[1728376383200,3.21,2431.1,2430.6,0.3971]
[1728376383396,0.41149,2430.8,2430.6,0.41151]
[1728376383694,0.8144,2430.7,2430.6,0.41151]
[1728376384985,3.62148,2430.9,2430.5,0.7895]
[1728376384986,0.3884,2431.0,2430.5,0.7895]
[1728376385188,0.4084,2431.1,2430.5,3.9995]
[1728376385386,0.4084,2431.1,2431.0,0.41145]
[1728376389188,0.3955,2431.2,2431.1,0.41143]
[1728376389695,0.3955,2431.2,2430.7,4.23876]
[1728376389696,3.6128,2431.4,2431.3,0.4114]
[1728376389897,0.405,2431.4,2431.3,0.4114]
[1728376390096,0.4171,2431.6,2431.4,0.41137]
[1728376390097,3.6271,2431.6,2431.4,0.41137]
[1728376390296,4.44345,2431.6,2431.4,0.41137]
[1728376390992,0.41138,2431.5,2431.2,0.4114]
[1728376391215,4.0321,2431.6,2431.2,0.4114]
[1728376391597,0.41138,2431.4,2431.2,0.4114]
[1728376392100,0.06401982,2431.3,2431.2,0.4114]
[1728376392491,4.0321,2431.6,2431.2,0.4114]
[1728376392694,0.4753998,2431.5,2431.0,0.4266]
[1728376392898,0.0640198,2431.4,2431.3,0.4114]
[1728376393303,4.44346,2431.6,2431.4,0.41138]
[1728376393498,0.4753964,2431.5,2431.2,0.41141]
[1728376393694,0.0640164,2431.4,2431.3,0.4114]
[1728376394198,0.0640164,2431.4,2431.0,0.4266]
[1728376394399,4.44346,2431.6,2431.3,0.41138]
[1728376394600,0.47539415,2431.5,2431.3,0.41138]
[1728376394800,0.41138,2431.5,2431.3,0.41138]
[1728376397407,4.0321,2431.6,2431.4,0.41138]
[1728376397408,4.44346,2431.6,2431.4,0.41138]
[1728376397612,0.06401544,2431.5,2431.4,0.41138]
[1728376397904,4.44346,2431.6,2431.4,0.41138]
[1728376398498,4.0321,2431.6,2431.4,0.41138]
[1728376398705,4.0321,2431.6,2431.5,0.41137]
[1728376398910,4.09611313,2431.6,2431.5,0.41137]
[1728376399408,4.50747495,2431.6,2431.0,0.5226]
[1728376399607,4.0321,2431.6,2431.0,0.5226]
[1728376399807,4.44346,2431.6,2431.4,0.41137]
[1728376400006,0.41137,2431.5,2431.3,0.41139]
[1728376402007,4.44346,2431.6,2431.4,0.41138]
[1728376402611,1.48,2431.5,2431.4,0.41138]
[1728376403311,2.3021,2431.6,2431.5,0.41137]
[1728376403508,2.3021,2431.6,2431.1,1.48]
[1728376403711,2.71346,2431.6,2431.4,0.41138]
[1728376404533,1.48,2431.5,2431.3,0.408]
[1728376404807,0.8221,2431.6,2431.0,0.4266]
[1728376404808,1.48,2431.4,2431.0,0.4266]
[1728376405001,2.29939,2431.4,2431.2,0.41141]
[1728376405207,1.888,2431.4,2431.3,0.4114]
[1728376405607,2.29939,2431.4,2431.2,0.41141]
[1728376405802,2.29939,2431.4,2431.0,0.8154]
[1728376405803,2.29939,2431.4,2431.3,0.4114]
[1728376407114,2.29939,2431.4,2431.2,0.4114]
[1728376407315,2.29939,2431.4,2431.1,0.41143]
[1728376407612,2.29939,2431.4,2431.2,0.4114]
[1728376408119,0.41141,2431.3,2431.0,0.8154]
[1728376408318,1.888,2431.4,2431.0,0.8154]
[1728376408319,2.29939,2431.4,2431.2,0.41141]
[1728376408616,2.29939,2431.4,2431.0,0.8154]
[1728376408617,0.408,2431.4,2431.3,0.4114]
[1728376409111,0.408,2431.4,2431.0,2.2954]
[1728376409112,0.8221,2431.6,2431.2,1.48]
[1728376409315,0.8221,2431.6,2431.5,0.41137]
[1728376409619,1.23346,2431.6,2431.4,0.41137]
[1728376409821,1.23346,2431.6,2431.4,1.24927]
[1728376410517,2.3021,2431.6,2431.4,1.24927]
[1728376410717,2.71346,2431.6,2431.4,1.24927]
[1728376412415,0.41138,2431.5,2431.3,0.837]
[1728376412621,1.89138,2431.5,2431.3,0.4114]
[1728376413517,0.81749,2431.4,2431.2,0.41141]
[1728376414819,0.81749,2431.4,2431.0,0.41145]
[1728376414820,0.41144,2431.1,2431.0,0.41145]
[1728376415623,0.4061,2431.4,2431.1,0.41143]
[1728376415624,0.41142,2431.2,2431.1,0.41143]
[1728376416522,0.4061,2431.4,2430.7,1.187]
[1728376416714,0.79774,2431.1,2430.9,0.41146]
[1728376416910,0.79774,2431.1,2431.0,0.41145]
[1728376417113,0.41148,2430.9,2430.7,0.8038]
[1728376417422,0.80907,2431.0,2430.8,0.41148]
[1728376418423,0.41147,2430.9,2430.7,0.41149]
[1728376418926,0.3976,2431.0,2430.5,0.4184]
[1728376419119,0.80906,2431.0,2430.5,0.4184]
[1728376419325,0.41147,2430.9,2430.7,0.41149]
[1728376420026,0.41147,2430.9,2430.5,0.4184]
[1728376420427,0.41147,2430.9,2430.7,0.41149]
[1728376422326,0.41147,2430.9,2430.5,0.4184]
[1728376422624,0.41147,2430.9,2430.7,0.41149]
[1728376423018,0.3976,2431.0,2430.5,0.4184]
[1728376423233,0.80907,2431.0,2430.8,0.41148]
[1728376425128,0.3976,2431.0,2430.9,0.41147]
[1728376425435,0.3863,2431.1,2431.0,0.41145]
[1728376426338,0.79773,2431.1,2431.0,0.41145]
[1728376426934,0.79773,2431.1,2430.9,0.41146]
[1728376427332,0.41146,2431.0,2430.8,0.41148]
[1728376427730,0.83396,2431.0,2430.8,0.41148]
[1728376429438,0.83396,2431.0,2430.9,0.41147]
[1728376429638,0.4225,2431.0,2430.9,0.41147]
[1728376429834,0.79774,2431.1,2430.9,0.41147]
[1728376431543,3.2078,2431.3,2430.8,3.21]
[1728376431834,3.61921,2431.3,2431.1,0.41143]
[1728376432039,3.2078,2431.3,2431.2,0.41142]
[1728376432230,3.61922,2431.3,2430.9,1.2561]
[1728376432430,0.3952,2431.2,2431.1,0.41143]
[1728376433341,0.41146,2431.0,2430.8,0.41148]
[1728376434045,0.41146,2431.0,2430.9,0.41147]
[1728376434342,0.41146,2431.0,2430.7,0.4228]
[1728376434343,0.41146,2431.0,2430.8,0.41148]
[1728376435143,0.41146,2431.0,2430.9,0.41147]
[1728376435532,0.41146,2431.0,2430.7,0.4228]
[1728376435737,0.41146,2431.0,2430.8,0.41147]
[1728376436136,0.41146,2431.0,2430.9,0.41147]
[1728376436937,1.20304,2431.1,2430.9,0.41147]
[1728376439744,0.7916,2431.1,2431.0,0.41145]
[1728376439947,0.4027,2431.1,2431.0,0.41145]
[1728376440142,0.81413,2431.1,2431.0,0.41145]
[1728376440634,0.4027,2431.1,2431.0,0.41145]
[1728376441446,0.8196,2431.4,2431.1,0.41143]
[1728376441633,0.4096,2431.4,2431.2,0.8259]
[1728376441840,0.4114,2431.3,2431.2,0.8259]
[1728376442037,0.41143,2431.2,2431.0,0.41144]
[1728376442238,0.83213,2431.2,2431.0,0.41144]
[1728376442436,0.4024,2431.1,2431.0,0.41144]
[1728376442635,0.82099,2431.4,2430.9,5.5137]
[1728376442836,0.812,2431.4,2431.3,0.4114]
[1728376443033,1.2234,2431.4,2431.2,0.41141]
[1728376443239,1.2234,2431.4,2431.3,0.4016]
[1728376443446,1.2234,2431.4,2431.3,0.8259]
[1728376448747,3.45028447,2431.7,2431.3,0.8259]
[1728376449046,3.45028447,2431.7,2431.4,0.41138]
[1728376449047,0.41136,2431.6,2431.4,0.41138]
[1728376449853,3.2078,2431.7,2431.4,0.41138]
[1728376450146,0.41137,2431.5,2431.4,0.41138]
[1728376450649,0.41137,2431.5,2431.3,0.8259]
[1728376450848,0.41138,2431.5,2431.3,1.23729]
[1728376451046,0.3978,2431.4,2431.3,1.23729]
[1728376454943,0.80918,2431.4,2431.3,0.4243]
[1728376455143,1.62138,2431.4,2431.2,0.4121]
[1728376455341,1.62138,2431.4,2431.2,0.8235]
[1728376456041,0.41141,2431.3,2431.1,0.41142]
[1728376456443,1.48,2431.2,2430.8,0.096]
[1728376456647,4.4178,2431.4,2430.9,0.41146]
[1728376456648,1.89144,2431.1,2430.9,0.41146]
[1728376456848,0.3978,2431.0,2430.9,0.41146]
[1728376457251,0.8122,2431.4,2430.9,8.8014]
[1728376457445,0.3952,2431.4,2431.3,0.4114]
[1728376458446,0.8066,2431.4,2431.1,0.41143]
[1728376458659,0.3954,2431.3,2431.2,0.41142]
[1728376458860,0.7932,2431.3,2431.2,0.41142]
[1728376459562,0.3978,2431.3,2431.2,0.41142]
[1728376464454,0.3952,2431.4,2431.0,2.7219]
[1728376464658,0.4214,2431.5,2431.4,0.41138]
[1728376465559,3.614,2431.7,2431.6,0.41135]
[1728376465756,3.2078,2431.7,2431.6,4.29538772]
[1728376465963,4.135,2432.0,2431.9,0.4113]
[1728376466156,0.4222,2432.2,2432.1,0.41127]
[1728376466351,0.4062,2432.3,2432.0,0.3908]
[1728376466552,0.4062,2432.3,2432.2,1.89125]
[1728376467057,0.4062,2432.3,2432.2,1.77319558]
[1728376467652,0.4222,2432.4,2432.2,1.36194558]
[1728376467988,0.4134,2432.6,2432.3,0.41122]
[1728376468154,0.82458,2432.6,2432.3,0.41122]
[1728376468353,0.82458,2432.6,2432.1,7.2479]
[1728376468354,0.4134,2432.6,2432.1,7.2479]
[1728376468661,0.4112,2432.5,2432.2,0.41124]
[1728376469057,0.41123,2432.4,2432.1,4.04196]
[1728376469253,0.83084,2432.3,2432.1,3.2078]
[1728376469456,0.83084,2432.3,2431.8,3.7309]
[1728376469457,0.4273,2432.2,2431.8,3.7309]
[1728376469667,0.41128,2432.1,2431.8,3.6349]
[1728376470055,0.41128,2432.1,2431.8,4.04621]
[1728376470256,0.4273,2432.2,2431.8,4.04621]
[1728376470459,0.4113,2431.9,2431.8,3.2078]
[1728376472761,4.5233,2431.9,2431.8,3.2078]
[1728376473965,0.41132,2431.8,2431.6,0.41135]
[1728376474168,1.61892,2431.8,2431.6,0.41135]
[1728376474469,1.61892,2431.8,2431.5,1.22565]
[1728376476063,1.2076,2431.8,2431.5,0.8143]
[1728376476268,0.41134,2431.7,2431.5,0.8143]
[1728376476463,0.41132,2431.8,2431.5,1.22565]
[1728376476864,1.2155,2432.0,2431.5,1.22565]
[1728376477165,1.2155,2432.0,2431.5,0.8143]
[1728376477166,0.41133,2431.7,2431.5,0.8143]
[1728376477587,0.3981,2431.6,2431.5,0.8143]
[1728376477772,0.3981,2431.6,2431.5,1.22567]
[1728376477965,0.41137,2431.5,2431.3,0.41139]
[1728376478270,0.41139,2431.4,2431.2,7.8246977]
[1728376478569,0.837,2431.5,2431.3,0.41139]
[1728376478962,1.24837,2431.5,2431.3,0.41139]
[1728376479364,1.24837,2431.5,2431.2,8.2360977]
[1728376480073,1.24837,2431.5,2431.2,7.8246977]
[1728376480273,1.24837,2431.5,2431.3,0.41139]
[1728376481203,1.24837,2431.5,2431.2,8.2361077]
[1728376482666,4.48568742,2431.8,2431.2,7.8246977]
[1728376482865,4.48568742,2431.8,2431.5,0.41136]
[1728376482866,3.86868742,2431.8,2431.5,0.41136]
[1728376483471,0.41133,2431.7,2431.4,0.41138]
[1728376483871,0.41133,2431.7,2431.2,7.8224977]
[1728376483872,0.41139,2431.4,2431.2,7.8224977]
[1728376484077,0.41137,2431.5,2431.2,7.8224977]
[1728376484377,1.61066,2431.6,2431.2,7.8224977]
[1728376484696,1.61066,2431.6,2431.3,0.4114]
[1728376485065,0.41138,2431.5,2431.3,0.4114]
[1728376486273,0.41138,2431.5,2431.2,7.8224977]
[1728376486571,0.41138,2431.5,2431.3,0.4114]
[1728376487372,0.41138,2431.5,2431.2,7.8224977]
[1728376487671,0.41138,2431.5,2431.3,0.4114]
[1728376488171,1.1993,2431.6,2431.2,7.8224977]
[1728376488172,1.61065,2431.6,2431.2,7.8224977]
[1728376488869,1.1993,2431.6,2431.3,0.41139]
[1728376489068,0.8086,2431.6,2431.2,7.8224977]
[1728376489264,0.8086,2431.6,2431.4,0.41137]
[1728376489469,1.21996,2431.6,2431.4,0.41137]
[1728376490075,0.41137,2431.5,2431.3,0.41139]
[1728376490375,0.41138,2431.4,2431.2,3.61921]
[1728376490672,0.3888,2431.3,2431.2,3.61921]
[1728376491772,0.3888,2431.3,2431.2,3.2078]
[1728376491975,0.8002,2431.3,2431.2,3.2078]
[1728376493463,0.3888,2431.3,2431.2,3.61922]
[1728376493668,0.8002,2431.3,2431.2,3.2078]
[1728376494370,0.3888,2431.3,2431.2,3.61922]
[1728376494965,0.3888,2431.3,2431.2,0.41142]
[1728376495473,0.8086,2431.6,2431.2,3.2078]
[1728376495678,0.8086,2431.6,2431.4,0.41138]
[1728376495679,1.21996,2431.6,2431.4,0.41138]
[1728376495879,1.21996,2431.6,2431.5,0.4243]
[1728376496278,0.8086,2431.6,2431.2,3.6059]
[1728376496572,0.41137,2431.5,2431.3,0.41139]
[1728376497377,0.41137,2431.5,2431.2,4.031]
[1728376497569,0.41137,2431.5,2431.3,0.4114]
[1728376497970,0.4114,2431.4,2431.2,4.04431]
[1728376498204,0.4114,2431.3,2431.1,0.82672]
[1728376498476,0.4121,2431.2,2431.0,0.41145]
[1728376498688,0.4121,2431.2,2431.0,0.81295]
[1728376498689,0.8194,2431.2,2431.0,0.81295]
[1728376500581,1.23082,2431.2,2431.0,0.81295]
[1728376500777,0.8194,2431.2,2431.0,0.81295]
[1728376500981,0.8194,2431.2,2431.1,0.41143]
[1728376501379,0.81859,2431.4,2431.0,0.4015]
[1728376501581,0.4114,2431.3,2431.1,0.41142]
[1728376501774,3.46145596,2431.5,2431.0,0.4015]
[1728376502084,0.83195,2431.6,2431.4,0.41138]
[1728376502389,0.4206,2431.6,2431.2,0.41142]